bitfinex-derivatives/quotes_ETHF0:USTF0_20251005
["timestamp","ask_amount","ask_price","bid_price","bid_amount"]
[1759659572082,1.83543,4546.5,4546.4,0.225]
[1759659572979,1.83543,4546.5,4546.3,0.00283293]
[1759659573175,1.83543,4546.5,4546.4,0.225]
[1759659574085,0.39583,4546.4,4546.3,0.00283293]
[1759659574285,1.62233,4546.4,4546.3,0.22783293]
[1759659574485,1.62233,4546.4,4546.3,0.62367293]
[1759659574782,1.62233,4546.4,4546.3,0.39867293]
[1759659574981,1.62233,4546.4,4546.3,0.62367293]
[1759659575687,1.2265,4546.4,4546.3,0.94937293]
[1759659575873,1.2265,4546.4,4546.3,0.62367293]
[1759659576079,0.5432,4547.0,4546.9,0.3257]
[1759659576280,0.5432,4547.0,4546.9,1.77119]
[1759659576583,1.08875,4547.4,4547.3,0.72145]
[1759659576783,1.08875,4547.4,4547.3,0.62075]
[1759659576985,1.08875,4547.4,4547.3,1.27705]
[1759659577182,1.08875,4547.4,4547.3,0.62075]
[1759659577377,1.41971076,4548.0,4547.9,0.3257]
[1759659577378,0.89846076,4548.0,4547.9,0.3257]
[1759659577585,1.29416076,4548.0,4547.8,0.39571]
[1759659577989,1.08871,4547.8,4547.7,0.225]
[1759659578189,1.2265,4547.8,4547.7,0.225]
[1759659578789,1.2265,4547.8,4547.7,0.5507]
[1759659579186,1.2265,4547.8,4547.7,0.225]
[1759659579691,1.2265,4547.8,4547.7,0.5507]
[1759659581088,1.2265,4547.8,4547.7,0.225]
[1759659581487,1.2265,4547.8,4547.7,0.5507]
[1759659581691,1.62221,4547.8,4547.7,0.225]
[1759659582689,0.39574,4547.5,4547.4,0.39575]
[1759659582896,1.83224,4547.5,4547.4,0.62075]
[1759659583098,1.4365,4547.5,4547.4,0.62075]
[1759659583801,1.83224,4547.5,4547.4,0.62075]
[1759659584191,1.4365,4547.5,4547.4,0.62075]
[1759659584389,1.83224,4547.5,4547.4,0.62075]
[1759659584793,1.83224,4547.5,4547.4,0.94645]
[1759659584994,1.83224,4547.5,4547.4,0.62075]
[1759659585591,1.08875,4547.4,4547.3,0.8901]
[1759659585797,1.62225,4547.4,4547.3,0.8901]
[1759659586301,1.62225,4547.4,4547.3,1.28586]
[1759659586501,1.2265,4547.4,4547.3,1.61156]
[1759659586799,0.8753,4547.4,4547.3,2.43626]
[1759659587498,0.5335,4547.4,4547.3,2.43626]
[1759659587699,1.78866076,4548.0,4547.9,0.3381]
[1759659588302,0.00196076,4548.0,4547.9,1.5431]
[1759659588598,0.67768232,4548.5,4548.4,0.3381]
[1759659588799,0.67768232,4548.5,4548.4,0.225]
[1759659589101,0.67768232,4548.5,4548.4,0.8647]
[1759659589304,0.67768232,4548.5,4548.4,0.225]
[1759659589507,0.680011,4548.5,4548.4,0.225]
[1759659590003,0.680011,4548.5,4548.0,0.6681]
[1759659590004,0.39569,4548.1,4548.0,0.8647]
[1759659590198,1.05972,4547.7,4547.6,0.8647]
[1759659590398,1.05972,4547.7,4547.6,1.0897]
[1759659590595,1.58322,4547.7,4547.6,1.1886]
[1759659590799,1.58322,4547.7,4547.6,1.0897]
[1759659591202,1.58322,4547.7,4547.6,1.4136]
[1759659592200,1.1875,4547.7,4547.6,1.4136]
[1759659592400,0.3391,4547.7,4547.6,1.4136]
[1759659593410,1.2583,4548.0,4547.9,1.1886]
[1759659593603,1.2583,4548.0,4547.9,1.4136]
[1759659593806,1.5832,4548.0,4547.9,1.4136]
[1759659594311,1.5832,4548.0,4547.9,1.1886]
[1759659594503,1.5832,4548.0,4547.9,1.4126]
[1759659597817,0.00232868,4548.5,4548.4,0.3381]
[1759659598008,0.00232868,4548.5,4548.4,1.4126]
[1759659598315,0.34142868,4548.5,4548.4,1.4126]
[1759659599216,3.2078,4548.9,4548.8,1.1886]
[1759659599217,3.94252,4548.9,4548.8,1.1886]
[1759659599415,4.79092,4548.9,4548.8,1.4126]
[1759659599913,4.79092,4548.9,4548.8,1.1886]
[1759659600108,4.79333019,4548.9,4548.8,0.224]
[1759659600319,0.73475,4548.5,4548.4,1.1886]
[1759659600615,3.73371019,4548.9,4548.6,1.1886]
[1759659600616,0.3391,4548.7,4548.6,1.1886]
[1759659600806,0.39564,4548.6,4548.4,0.224]
[1759659601009,1.1875,4548.2,4548.1,1.1886]
[1759659601313,1.5832,4548.0,4547.9,4.0725]
[1759659601514,1.5832,4548.0,4547.9,4.2965]
[1759659601713,1.5832,4548.0,4547.9,4.6204]
[1759659601916,1.7932,4548.0,4547.9,3.2078]
[1759659602617,0.39573,4547.6,4547.5,0.8647]
[1759659602820,1.1875,4548.2,4548.1,0.8647]
[1759659603014,1.1875,4547.7,4547.6,1.1886]
[1759659603322,1.1875,4547.7,4547.6,1.4126]
[1759659604009,0.664,4547.7,4547.6,1.4126]
[1759659604209,3.2078,4548.2,4547.6,1.4126]
[1759659604210,0.5235,4548.1,4547.7,0.39572]
[1759659604421,0.3391,4547.8,4547.7,1.05772]
[1759659604914,0.3391,4547.8,4547.7,1.58432]
[1759659605119,0.664,4547.8,4547.7,1.80832]
[1759659605417,1.1875,4547.8,4547.7,1.1886]
[1759659605716,1.1875,4547.8,4547.7,1.4126]
[1759659605717,0.3391,4547.8,4547.7,1.4126]
[1759659606112,0.3391,4548.0,4547.9,1.5843]
[1759659606513,1.1875,4548.0,4547.9,1.1886]
[1759659608019,1.1875,4548.0,4547.9,0.8647]
[1759659608217,1.1875,4548.0,4547.9,1.1886]
[1759659610122,0.664,4548.0,4547.9,1.1886]
[1759659611518,0.664,4548.0,4547.9,1.4126]
[1759659612423,1.1875,4548.0,4547.9,1.4126]
[1759659613024,1.58317,4548.3,4548.2,1.1886]
[1759659613216,1.05967,4548.3,4548.2,1.80828]
[1759659613715,3.2078,4548.7,4548.2,1.9278]
[1759659613916,1.1875,4548.6,4548.5,1.3947]
[1759659614718,0.664,4548.6,4548.5,1.3947]
[1759659615114,0.00241019,4548.9,4548.8,1.1886]
[1759659615315,0.00241019,4548.9,4548.8,1.4126]
[1759659615520,1.1875,4549.5,4549.4,1.1886]
[1759659616412,1.1897699,4549.5,4549.4,1.1886]
[1759659617323,1.5853299,4549.5,4549.4,1.1886]
[1759659618020,0.0022699,4549.5,4549.4,1.1886]
[1759659618312,1.1682699,4549.5,4549.4,1.1886]
[1759659619815,0.6780699,4549.5,4549.4,1.1886]
[1759659620015,1.1682699,4549.5,4549.4,1.1886]
[1759659621124,0.6780699,4549.5,4549.4,1.1886]
[1759659621820,0.0022699,4549.5,4549.4,1.1886]
[1759659622820,0.0022699,4549.5,4549.4,6.1886]
[1759659623023,0.0143,4550.1,4550.0,1.79172]
[1759659623226,0.0143,4550.1,4550.0,2.01572]
[1759659623423,3.2078,4550.2,4550.1,1.188]
[1759659623925,3.21056642,4550.2,4550.1,1.19054238]
[1759659624125,3.21056642,4550.2,4550.1,4.39834238]
[1759659624126,0.00276642,4550.2,4550.1,4.39834238]
[1759659626424,0.36,4550.8,4550.7,1.58346]
[1759659626623,0.36,4550.8,4550.7,1.80746]
[1759659627125,0.0144,4550.8,4550.7,1.80746]
[1759659627325,0.0144,4550.8,4550.7,1.412]
[1759659627326,0.36218488,4550.8,4550.7,1.412]
[1759659627523,1.18258488,4550.8,4550.7,1.412]
[1759659628222,1.18258488,4550.8,4550.7,1.188]
[1759659628531,1.18258488,4550.8,4550.7,1.412]
[1759659628924,1.16818488,4550.8,4550.7,1.412]
[1759659629122,1.16818488,4550.8,4550.7,0.561]
[1759659629522,1.16818488,4550.8,4550.7,1.0736]
[1759659629724,1.16818488,4550.8,4550.7,0.8496]
[1759659629925,1.16818488,4550.8,4550.7,1.0736]
[1759659631829,1.16818488,4550.8,4550.7,1.412]
[1759659632732,0.00218488,4550.8,4550.7,1.412]
[1759659633128,1.17318488,4550.8,4550.7,1.412]
[1759659633623,1.17318488,4550.8,4550.7,1.188]
[1759659633823,1.17318488,4550.8,4550.7,1.412]
[1759659635027,0.33628488,4550.8,4550.7,1.412]
[1759659635222,0.00218488,4550.8,4550.7,1.412]
[1759659635423,3.2078,4551.1,4551.0,0.39544]
[1759659635623,3.2078,4552.1,4551.3,0.39541]
[1759659635824,0.3341,4551.2,4551.1,0.5086]
[1759659636034,1.171,4551.7,4551.6,0.3153]
[1759659636233,1.56638,4551.7,4551.6,1.0479]
[1759659636440,1.56824057,4551.7,4551.6,1.0479]
[1759659636932,1.17286057,4551.7,4551.6,1.0479]
[1759659637131,1.17286057,4551.7,4551.6,1.3882]
[1759659639634,1.17286057,4551.7,4551.6,1.1642]
[1759659639834,1.17286057,4551.7,4551.6,1.3882]
[1759659640331,0.67876057,4551.7,4551.6,1.3882]
[1759659640922,1.17286057,4551.7,4551.6,1.3882]
[1759659641335,0.67876057,4551.7,4551.6,1.3882]
[1759659641533,1.17286057,4551.7,4551.6,1.3882]
[1759659641935,0.3341,4551.3,4551.0,0.2041]
[1759659642134,1.56641,4551.3,4551.2,1.1642]
[1759659642433,1.56641,4551.3,4551.2,1.3882]
[1759659642631,1.56644,4550.9,4550.8,1.1642]
[1759659642824,1.56644,4550.9,4550.8,0.8239]
[1759659643031,1.56644,4550.9,4550.8,1.1642]
[1759659643234,0.39544,4551.0,4550.9,0.8239]
[1759659643536,1.56644,4551.0,4550.9,0.8239]
[1759659643929,1.56644,4551.0,4550.9,1.1642]
[1759659645237,1.07234,4551.0,4550.9,1.1642]
[1759659645430,0.8282,4551.4,4551.3,0.6556]
[1759659645633,3.7019,4551.6,4551.5,0.2041]
[1759659645931,1.171,4551.6,4551.5,0.8239]
[1759659646231,3.60504057,4551.7,4551.0,0.2041]
[1759659646232,1.171,4551.2,4551.1,0.8239]
[1759659646437,0.3954,4551.5,4551.2,0.39542]
[1759659646629,0.33596057,4551.7,4551.6,1.1642]
[1759659647334,1.17756057,4551.7,4551.6,1.1642]
[1759659647529,0.67876057,4551.7,4551.6,1.1642]
[1759659647733,0.00186057,4551.7,4551.6,1.3882]
[1759659649839,0.3533,4552.9,4552.8,1.1633]
[1759659650136,1.58687,4552.9,4552.8,0.8291]
[1759659650329,1.58687,4552.9,4551.4,0.5079]
[1759659650330,0.4988,4552.0,4551.4,0.5079]
[1759659650533,0.3954,4551.4,4551.1,0.7319]
[1759659650733,1.1696,4551.2,4551.1,1.0531]
[1759659651032,1.17217214,4551.2,4551.1,1.3873]
[1759659651230,0.33387214,4551.2,4551.1,1.3873]
[1759659651430,0.00257214,4551.2,4551.1,1.3873]
[1759659651631,1.17217214,4551.2,4551.1,0.224]
[1759659651830,1.56759214,4551.2,4551.1,0.5452]
[1759659652040,1.17217214,4551.2,4551.1,1.3873]
[1759659652237,0.33387214,4551.2,4551.1,1.3873]
[1759659652737,0.00257214,4551.2,4551.1,1.78273]
[1759659654247,0.00257214,4551.2,4551.1,9.99053]
[1759659654841,3.5391,4552.8,4552.7,0.6554]
[1759659655035,3.5391,4552.8,4552.7,1.1633]
[1759659655641,4.3774,4552.8,4552.7,1.1633]
[1759659655945,1.1696,4552.1,4552.0,0.8291]
[1759659656240,1.1696,4552.1,4552.0,1.0531]
[1759659656835,0.6708,4552.1,4552.0,1.5933]
[1759659657234,0.3313,4552.1,4552.0,1.5933]
[1759659657433,0.72662,4552.4,4552.3,1.1633]
[1759659657635,3.21018432,4552.8,4552.7,0.3212]
[1759659657940,4.27626432,4552.8,4552.7,1.1633]
[1759659658544,1.0661,4552.6,4552.5,0.8291]
[1759659658744,1.0661,4552.6,4552.5,1.1633]
[1759659659141,0.7266,4552.6,4552.5,1.3693]
[1759659659338,1.1696,4552.5,4552.0,0.7139]
[1759659659543,0.6708,4552.1,4552.0,1.3693]
[1759659659839,1.1696,4552.1,4551.8,3.2078]
[1759659660044,1.22546,4552.0,4551.9,1.3873]
[1759659660239,0.3313,4552.0,4551.9,1.3873]
[1759659660546,1.56493,4552.3,4552.2,0.8291]
[1759659660738,3.21018432,4552.8,4552.2,0.6554]
[1759659661046,0.72661,4552.5,4552.4,1.1633]
[1759659661243,1.56491,4552.5,4552.4,1.1633]
[1759659661439,0.39531,4552.5,4552.4,0.6554]
[1759659661639,0.39531,4552.5,4552.4,1.1633]
[1759659662034,0.39531,4552.5,4552.4,0.8291]
[1759659662241,0.39531,4552.5,4552.4,0.5079]
[1759659663847,0.39531,4552.5,4552.4,0.8291]
[1759659664046,0.39531,4552.5,4552.4,0.5079]
[1759659664947,2.27509432,4552.8,4552.7,0.3212]
[1759659665148,2.67037432,4552.8,4552.7,1.1633]
[1759659665343,2.27509432,4552.8,4552.7,1.1633]
[1759659666840,2.27509432,4552.8,4552.7,4.3711]
[1759659666841,0.00238432,4552.8,4552.7,4.3711]
[1759659667644,0.00238432,4552.8,4552.7,1.1633]
[1759659668442,0.00238432,4552.8,4552.7,0.8291]
[1759659668645,0.00238432,4552.8,4552.7,1.1633]
[1759659669652,0.00238432,4552.8,4552.7,0.8291]
[1759659670151,0.00238432,4552.8,4552.7,1.1633]
[1759659670450,0.00238432,4552.8,4552.7,0.8291]
[1759659670846,0.00238432,4552.8,4552.7,0.5079]
[1759659671047,0.69474,4552.1,4552.0,0.5272]
[1759659671349,1.18124,4552.1,4551.5,0.206]
[1759659671552,1.18124,4552.1,4552.0,0.206]
[1759659672146,0.99414,4552.1,4552.0,0.5272]
[1759659672549,0.7859,4552.0,4551.5,0.206]
[1759659673054,8.88953784,4552.0,4551.5,0.206]
[1759659673248,5.5988,4552.0,4551.9,2.0584]
[1759659673454,0.8228,4552.0,4551.9,2.0584]
[1759659673847,0.8228,4552.0,4551.9,1.7242]
[1759659676554,0.5988,4552.0,4551.9,1.7242]
[1759659676751,0.5988,4552.0,4551.9,2.0584]
[1759659677160,0.5988,4552.0,4551.9,1.7242]
[1759659677857,0.7936,4552.0,4551.9,1.403]
[1759659678054,1.01878,4551.6,4551.5,0.7215]
[1759659678360,4.22658,4551.6,4551.5,1.0639]
[1759659679656,1.01883,4551.1,4551.0,1.0639]
[1759659679857,1.01883,4551.1,4551.0,1.3982]
[1759659681662,1.01883,4551.1,4551.0,0.5155]
[1759659681855,1.58426,4550.7,4550.6,1.4468]
[1759659682055,1.58426,4550.7,4550.6,1.7892]
[1759659682657,1.58426,4550.7,4550.6,0.5155]
[1759659682862,0.3955,4550.2,4550.1,1.19474238]
[1759659684159,4.27479,4551.5,4551.4,1.1922]
[1759659684360,1.58423,4551.1,4551.0,1.1922]
[1759659685061,1.58426,4550.7,4550.6,2.1244]
[1759659685360,3.60326,4550.7,4550.6,1.9004]
[1759659685762,4.79206,4550.7,4550.6,1.3849]
[1759659685960,4.79206,4550.7,4550.6,1.0506]
[1759659686163,4.79206,4550.7,4550.6,0.25922]
[1759659686763,5.01606,4550.7,4550.6,0.25922]
[1759659687363,1.5843,4550.3,4550.2,1.1922]
[1759659687662,1.58422,4551.2,4551.1,1.1922]
[1759659687860,1.06705,4550.8,4550.7,0.8579]
[1759659688052,0.73435,4550.8,4550.7,1.1922]
[1759659688257,0.39545,4550.8,4550.7,1.1922]
[1759659688457,0.73435,4550.8,4550.7,1.1922]
[1759659689564,1.58425,4550.8,4550.7,1.1922]
[1759659691065,0.3955,4550.2,4550.1,0.67924238]
[1759659691568,0.3955,4550.2,4550.1,1.19474238]
[1759659693058,0.3955,4550.3,4550.2,0.527]
[1759659693366,0.3955,4550.3,4550.2,1.1986]
[1759659694463,0.39548,4550.6,4550.3,0.3955]
[1759659694768,1.48293,4551.1,4551.0,1.1986]
[1759659696566,3.2078,4551.3,4551.1,0.39543]
[1759659696765,0.5156,4551.5,4551.1,0.39543]
[1759659696766,0.0219,4551.6,4551.5,1.78959]
[1759659697063,3.60313,4552.3,4552.0,0.39534]
[1759659697262,0.39529,4552.7,4552.6,1.1986]
[1759659699563,1.60519,4552.7,4552.6,1.1986]
[1759659700161,1.60519,4552.7,4552.6,0.6716]
[1759659700455,1.60519,4552.7,4552.6,0.3423]
[1759659700660,1.60519,4552.7,4552.6,1.1986]
[1759659701462,1.25879,4552.7,4552.6,1.1986]
[1759659701965,0.8635,4552.7,4552.6,1.1986]
[1759659702164,3.21018432,4552.8,4552.7,0.527]
[1759659702362,3.21018432,4552.8,4552.7,1.1986]
[1759659703270,0.00238432,4552.8,4552.7,1.1986]
[1759659704671,0.022,4552.9,4552.7,9.80169]
[1759659704866,3.2078,4553.9,4553.8,0.6716]
[1759659705064,3.2078,4553.9,4553.8,1.1986]
[1759659705663,3.2078,4553.9,4553.8,1.20144577]
[1759659705973,3.20946955,4553.9,4553.8,1.20144577]
[1759659706172,1.97623,4553.3,4551.9,0.59137956]
[1759659706363,0.5156,4551.6,4551.5,0.78802043]
[1759659706576,0.1943,4551.0,4550.6,3.2078]
[1759659706765,0.5156,4550.7,4550.6,3.2078]
[1759659707170,0.51841949,4550.7,4550.6,3.20981069]
[1759659707768,0.51841949,4550.7,4550.6,0.00201069]
[1759659707973,0.51841949,4550.7,4549.1,3.2078]
[1759659707974,0.39554,4549.8,4549.1,3.2078]
[1759659708268,0.39554,4549.8,4548.8,34.281]
[1759659708269,0.5225,4549.9,4549.6,3.2078]
[1759659708470,0.5225,4549.7,4549.6,3.2078]
[1759659709077,0.5225,4549.7,4549.6,3.20984862]
[1759659709572,0.5225,4549.7,4549.6,0.00204862]
[1759659711178,0.5225,4549.9,4549.8,0.39554]
[1759659711474,0.5225,4549.9,4549.8,0.61954]
[1759659712174,0.5225,4549.9,4549.8,0.224]
[1759659712980,0.5225,4549.9,4549.8,0.61954]
[1759659713682,0.7234,4550.5,4550.4,0.39549]
[1759659713979,0.7234,4550.5,4550.4,3.60329]
[1759659721286,0.2009,4550.5,4550.4,3.60329]
[1759659721999,0.00281949,4550.7,4550.6,0.39547]
[1759659722195,0.52531949,4550.7,4550.6,0.61947]
[1759659722391,0.00281949,4550.7,4550.4,3.2078]
[1759659722596,0.00281949,4550.7,4549.9,0.98883]
[1759659722597,1.26271,4550.1,4550.0,0.39552]
[1759659722897,1.2006,4550.1,4550.0,0.61952]
[1759659723500,0.8672,4550.1,4550.0,0.61952]
[1759659723796,1.2006,4550.1,4550.0,0.61952]
[1759659724599,0.8672,4550.1,4550.0,0.61952]
[1759659724796,0.8672,4550.1,4550.0,0.39552]
[1759659725292,0.8672,4550.1,4550.0,0.61952]
[1759659725494,0.5225,4550.1,4550.0,0.61952]
[1759659726899,0.5225,4550.1,4550.0,5.61952]
[1759659727099,0.7234,4550.5,4550.4,0.39549]
[1759659727295,0.7234,4550.5,4550.4,3.82729]
[1759659728098,0.2009,4550.5,4550.4,3.82729]
[1759659728298,0.00281949,4550.7,4550.6,0.39547]
[1759659728497,0.00281949,4550.7,4550.6,0.61947]
[1759659730901,0.52531949,4550.7,4550.6,0.61947]
[1759659731704,0.2009,4552.0,4551.9,0.39536]
[1759659731705,0.5456,4552.0,4551.9,0.39536]
[1759659731905,0.879,4552.0,4551.9,0.61936]
[1759659732701,0.88109554,4552.0,4551.9,0.61936]
[1759659732908,0.54769554,4552.0,4551.9,0.61936]
[1759659733206,0.20299554,4552.0,4551.9,0.61936]
[1759659733806,0.72549554,4552.0,4551.9,0.61936]
[1759659734205,1.07019554,4552.0,4551.9,0.61936]
[1759659734599,1.40359554,4552.0,4551.9,0.61936]
[1759659734797,0.72549554,4552.0,4551.9,0.61936]
[1759659735308,0.72549554,4552.0,4551.9,0.73475435]
[1759659736308,1.07019554,4552.0,4551.9,0.73475435]
[1759659736703,1.40359554,4552.0,4551.5,3.2078]
[1759659736904,1.2006,4551.6,4551.5,3.2078]
[1759659737104,1.2006,4551.6,4551.5,3.4318]
[1759659737504,1.2006,4551.6,4551.5,3.2078]
[1759659737805,6.2006,4551.6,4551.5,3.4318]
[1759659738011,6.2006,4551.6,4550.1,35.27377]
[1759659738012,1.1991,4551.1,4551.0,3.2078]
[1759659738212,1.1991,4551.1,4551.0,3.4318]
[1759659739712,1.1991,4551.1,4551.0,3.7763]
[1759659740611,1.1991,4551.1,4551.0,3.5523]
[1759659740912,0.8632,4551.1,4551.0,4.1018]
[1759659741301,0.5125,4551.1,4551.0,4.5388]
[1759659742215,0.8632,4551.1,4551.0,4.5388]
[1759659742814,0.8632,4551.1,4551.0,4.1018]
[1759659743012,1.1991,4551.1,4551.0,4.1018]
[1759659743414,0.5125,4551.4,4551.3,0.7625]
[1759659743611,0.5125,4551.4,4551.3,1.331]
[1759659743813,1.1991,4551.4,4551.3,0.894]
[1759659744913,1.1991,4551.3,4551.2,0.8768]
[1759659745114,1.1991,4551.3,4551.2,1.1008]
[1759659747217,1.1991,4551.3,4551.2,0.8768]
[1759659747409,1.1991,4551.3,4551.2,1.1008]
[1759659747807,1.1991,4551.3,4550.1,0.74001]
[1759659747808,1.1991,4550.2,4550.1,0.74001]
[1759659748017,1.1991,4550.2,4550.1,0.96401]
[1759659748520,1.1991,4550.2,4550.1,0.3445]
[1759659748814,1.59461,4550.2,4550.1,0.224]
[1759659749117,1.1991,4550.2,4550.1,0.5685]
[1759659751408,0.2019,4550.0,4549.8,0.39554]
[1759659751611,1.2145,4549.9,4549.7,0.45524]
[1759659751813,1.2145,4549.9,4549.8,0.224]
[1759659752319,1.2145,4549.9,4549.8,0.5632]
[1759659752520,1.2145,4549.9,4549.7,0.39554]
[1759659752521,1.2145,4549.7,4549.6,0.00204862]
[1759659752819,1.2145,4549.7,4549.6,0.22604862]
[1759659753416,1.2145,4549.7,4549.6,0.90824862]
[1759659753814,1.2145,4549.7,4549.6,0.56524862]
[1759659754019,1.2145,4549.7,4549.6,0.22604862]
[1759659754518,1.2145,4549.7,4549.6,0.56524862]
[1759659755214,1.2145,4549.7,4549.6,0.00204862]
[1759659757522,1.2145,4549.7,4549.6,0.34124862]
[1759659758617,1.2145,4549.7,4549.6,0.00204862]
[1759659764123,0.9889,4549.6,4548.9,3.2078]
[1759659764423,1.4205,4548.0,4547.9,0.70418841]
[1759659765121,1.42305362,4548.0,4547.9,0.70632593]
[1759659765823,1.42305362,4548.0,4547.9,1.14892593]
[1759659766713,1.42305362,4548.0,4547.9,0.70632593]
[1759659766914,0.00255362,4548.0,4547.9,1.37292593]
[1759659767326,0.48545362,4548.0,4547.9,1.37292593]
[1759659768019,0.81935362,4548.0,4547.9,1.37292593]
[1759659768224,1.35995362,4548.0,4547.9,0.93032593]
[1759659768825,0.00255362,4548.0,4547.9,1.36402593]
[1759659769226,0.48545362,4548.0,4547.9,1.36402593]
[1759659769428,1.02065362,4548.0,4547.9,1.36402593]
[1759659769627,1.02065362,4548.0,4547.9,0.93032593]
[1759659769828,1.35995362,4548.0,4547.9,0.93032593]
[1759659770531,1.35995362,4548.0,4547.9,1.14002593]
[1759659770726,1.35995362,4548.0,4547.9,1.36402593]
[1759659771421,1.75565362,4548.0,4547.9,1.36402593]
[1759659771622,1.75565362,4548.0,4547.9,0.93032593]
[1759659771824,1.75565362,4548.0,4547.9,0.36332593]
[1759659772127,1.35995362,4548.0,4547.9,0.58092593]
[1759659772727,1.35995362,4548.0,4547.9,0.91852593]
[1759659774032,1.35995362,4548.0,4547.9,1.31422593]
[1759659777228,1.02065362,4548.0,4547.9,1.74792593]
[1759659777431,0.00255362,4548.0,4547.9,6.74792593]
[1759659777735,1e-05,4548.3,4548.2,1.49978]
[1759659777929,1e-05,4548.3,4548.2,4.93158]
[1759659778636,0.206,4549.0,4548.9,0.39562]
[1759659778835,0.4829,4549.1,4549.0,1.1041]
[1759659779035,0.8168,4549.1,4549.0,1.1041]
[1759659779337,1.1561,4549.1,4549.0,0.6704]
[1759659779640,1.3574,4549.0,4548.9,3.2078]
[1759659779833,1.75301,4549.0,4548.9,3.4318]
[1759659780034,1.3574,4549.0,4548.9,3.4318]
[1759659780833,1.3574,4549.0,4548.9,3.7646]
[1759659781734,0.4829,4549.0,4548.9,4.5359]
[1759659781938,0.48541284,4549.1,4549.0,1.49971]
[1759659782433,0.81931284,4549.1,4549.0,1.49971]
[1759659782835,1.15861284,4549.1,4549.0,1.06601]
[1759659783035,1.75301,4549.0,4548.9,3.2078]
[1759659783235,0.6732,4548.6,4548.5,0.39565]
[1759659783532,0.4829,4548.5,4548.4,0.39566]
[1759659783733,1.1561,4548.3,4548.1,0.39568]
[1759659784034,1.1561,4548.3,4548.2,0.224]
[1759659784335,1.1561,4548.3,4548.2,3.4318]
[1759659784926,1.1561,4548.3,4548.2,3.7646]
[1759659785133,1.1561,4548.3,4548.2,4.1022]
[1759659789429,0.2013,4549.0,4548.9,0.72842]
[1759659789430,0.8745,4549.0,4548.9,0.72842]
[1759659789628,0.8745,4549.0,4548.9,0.95242]
[1759659790030,1.3574,4549.0,4548.9,0.95242]
[1759659790526,1.3574,4549.0,4548.9,0.61962]
[1759659790725,1.3574,4549.0,4548.9,0.95242]
[1759659791831,1.3574,4549.0,4548.9,1.29002]
[1759659792032,0.00251284,4549.1,4548.9,1.29002]
[1759659792233,0.00251284,4549.1,4549.0,1.1041]
[1759659792438,0.48541284,4549.1,4549.0,1.1041]
[1759659793633,0.81931284,4549.1,4549.0,1.1041]
[1759659793834,0.81931284,4549.1,4549.0,0.6704]
[1759659795438,0.81931284,4549.1,4549.0,1.1041]
[1759659796032,0.3339,4548.8,4548.7,3.2078]
[1759659796233,0.8168,4548.4,4548.3,1.18369043]
[1759659796433,1.1561,4548.4,4548.3,4.94829043]
[1759659797143,1.1561,4548.4,4548.3,4.16027]
[1759659798650,1.1561,4548.4,4548.3,4.49787]
[1759659804051,0.4829,4548.4,4548.3,4.91437]
[1759659805348,0.5395,4549.0,4548.9,0.3281]
[1759659805552,1.3714,4549.0,4548.9,0.5521]
[1759659805753,1.3714,4549.0,4548.9,0.8757]
[1759659806355,1.3714,4549.0,4548.9,1.27132]
[1759659806654,1.76701,4549.0,4548.9,0.61962]
[1759659806850,1.3714,4549.0,4548.9,0.94772]
[1759659807446,1.76701,4549.0,4548.9,0.61962]
[1759659808757,1.76701,4549.0,4548.9,0.224]
[1759659808959,1.76701,4549.0,4548.9,0.61962]
[1759659811558,1.57036,4548.4,4548.3,3.60347]
[1759659811752,1.1747,4548.4,4548.3,3.60347]
[1759659812057,1.3749,4548.0,4547.5,0.78802043]
[1759659812259,1.3749,4548.0,4547.9,0.24712593]
[1759659812660,1.3749,4548.0,4547.9,0.02412593]
[1759659812849,6.3749,4548.0,4547.9,0.02412593]
[1759659813556,0.8337,4547.4,4547.3,3.2078]
[1759659813754,0.8337,4547.4,4547.3,3.4308]
[1759659813755,1.57045,4547.4,4547.3,3.4308]
[1759659814461,1.57045,4547.4,4547.3,3.43357159]
[1759659814662,1.1747,4547.4,4547.3,3.43357159]
[1759659816463,1.1747,4547.4,4547.3,3.77177159]
[1759659816961,1.1747,4547.4,4547.3,4.51537159]
[1759659817261,0.8337,4547.8,4547.7,1.06901]
[1759659817460,0.8337,4547.8,4547.7,1.29201]
[1759659818158,1.1747,4547.8,4547.7,0.8963]
[1759659818364,1.1747,4547.8,4547.7,0.223]
[1759659818558,0.2002,4548.0,4547.3,3.21057159]
[1759659818559,1.1747,4547.4,4547.3,3.21057159]
[1759659818760,1.1747,4547.4,4547.3,3.43357159]
[1759659818953,1.1747,4547.4,4547.3,3.77177159]
[1759659819158,0.8337,4547.4,4547.3,4.10687159]
[1759659819754,1.1747,4547.4,4547.3,4.10687159]
[1759659820965,1.1747,4547.8,4547.7,1.06902]
[1759659821266,1.1747,4547.8,4547.7,0.61872]
[1759659821768,1.1747,4547.8,4547.7,0.223]
[1759659823562,0.39575,4547.4,4547.3,0.00277159]
[1759659823761,1.57045,4547.4,4547.3,0.00277159]
[1759659823969,1.57045,4547.4,4547.3,0.39853159]
[1759659824166,1.57045,4547.4,4547.3,0.00277159]
[1759659824962,1.1747,4547.4,4547.3,0.34097159]
[1759659825168,1.1747,4547.4,4547.3,3.54877159]
[1759659828169,0.5016,4547.4,4547.3,4.28357159]
[1759659828373,0.5329,4548.0,4547.9,0.7346]
[1759659828672,0.8469,4548.0,4547.9,0.9576]
[1759659828865,1.3072,4548.0,4547.9,0.9576]
[1759659829667,1.3072,4548.0,4547.9,0.5619]
[1759659830070,1.3072,4548.0,4547.9,0.8701]
[1759659833677,1.7029,4548.0,4547.9,1.2658]
[1759659834669,1.7029,4548.0,4547.9,0.8701]